bitfinex/quotes_ETHUSD_20251201
["timestamp","ask_amount","ask_price","bid_price","bid_amount"]
[1764590650949,0.09989793,2839.5,2838.9,0.4545]
[1764590651153,0.55449793,2839.5,2839.0,3.74836703]
[1764590651353,0.55449793,2839.5,2839.0,7.27073406]
[1764590651863,0.405504,2839.4,2839.0,7.27073406]
[1764590652471,0.09989793,2839.5,2839.0,7.73553406]
[1764590652648,0.09989793,2839.5,2839.1,0.645]
[1764590652852,0.405504,2839.4,2839.1,0.645]
[1764590653077,0.405504,2839.7,2839.2,7.0442378]
[1764590653309,0.60529987,2839.7,2839.3,0.4545]
[1764590653669,1.05989987,2839.7,2839.3,0.4545]
[1764590653988,1.05989987,2839.7,2839.1,3.6523806]
[1764590653989,0.19979587,2839.7,2839.1,3.6523806]
[1764590654159,0.002,2839.8,2839.1,3.6523806]
[1764590654160,0.285,2839.3,2839.2,0.226]
[1764590654367,0.690504,2839.3,2839.2,0.226]
[1764590655297,0.405504,2839.2,2839.0,0.72559411]
[1764590655476,0.880304,2839.2,2839.0,0.72559411]
[1764590655800,0.880304,2839.2,2839.1,0.226]
[1764590656574,1.334904,2839.2,2839.1,0.226]
[1764590657067,1.334904,2839.2,2839.0,3.52234784]
[1764590657396,0.4546,2839.6,2839.0,7.77030898]
[1764590657600,0.405504,2839.2,2839.1,0.226]
[1764590658392,0.882204,2839.2,2839.1,0.226]
[1764590659471,1.336004,2839.2,2839.1,0.226]
[1764590659993,0.881404,2839.2,2839.1,0.226]
[1764590660202,0.883404,2839.2,2839.1,0.226]
[1764590660606,1.338004,2839.2,2838.8,7.04520993]
[1764590660783,0.285,2839.0,2838.9,0.226]
[1764590661166,0.285,2839.0,2838.9,3.7474911]
[1764590661372,0.690504,2839.0,2838.9,3.7474911]
[1764590661919,0.405504,2839.0,2838.9,3.7474911]
[1764590663217,0.405504,2839.0,2838.9,4.2351911]
[1764590664709,0.405504,2839.0,2838.9,3.7474911]
[1764590665010,0.890104,2839.0,2838.9,3.7474911]
[1764590666401,0.405504,2838.6,2838.2,3.52335987]
[1764590666603,0.890104,2838.3,2838.2,3.52335987]
[1764590666796,0.890104,2838.3,2838.2,3.74835987]
[1764590668180,0.405504,2838.3,2838.2,3.74835987]
[1764590668381,0.405504,2838.3,2838.2,4.23605987]
[1764590669484,0.405504,2838.3,2838.2,3.74835987]
[1764590670198,1.374604,2838.3,2838.2,3.74835987]
[1764590676410,1.374604,2838.3,2838.2,10.46149114]
[1764590676723,0.890104,2838.3,2838.2,10.46149114]
[1764590676923,1.365704,2838.3,2838.2,10.46149114]
[1764590677455,1.365704,2838.3,2838.2,10.23649114]
[1764590677628,1.365704,2838.3,2838.2,10.46149114]
[1764590678432,1.365704,2838.3,2838.2,9.90166351]
[1764590678630,1.365704,2838.3,2838.2,3.74835987]
[1764590680463,0.405504,2838.2,2838.1,0.72659411]
[1764590680635,1.126704,2838.2,2838.1,0.226]
[1764590681258,1.126704,2838.2,2838.1,0.001]
[1764590681463,1.126704,2838.2,2838.1,0.226]
[1764590681856,1.22660193,2838.2,2838.1,0.226]
[1764590682153,1.22660193,2838.2,2838.1,0.001]
[1764590682354,1.22660193,2838.2,2838.1,0.226]
[1764590682355,1.22580193,2838.2,2838.1,0.226]
[1764590682545,1.22580193,2838.2,2838.1,0.001]
[1764590683565,1.22580193,2838.2,2838.1,0.226]
[1764590683962,4.7491618,2838.2,2838.1,0.001]
[1764590684161,5.57640305,2838.2,2838.1,0.001]
[1764590684459,6.14816028,2838.2,2838.1,0.001]
[1764590685742,5.57640305,2838.2,2838.1,0.001]
[1764590689364,6.30199716,2838.2,2838.1,0.001]
[1764590690655,6.20209923,2838.2,2838.1,0.001]
[1764590690973,1.54844125,2838.2,2838.1,0.001]
[1764590691176,0.82109793,2838.2,2838.1,0.001]
[1764590691549,1.22660193,2838.2,2838.1,0.001]
[1764590692364,0.82109793,2838.2,2838.1,0.001]
[1764590692774,1.22660193,2838.2,2838.1,0.001]
[1764590692958,4.7499618,2838.2,2838.1,0.001]
[1764590693165,5.22495798,2838.2,2838.1,0.001]
[1764590694692,5.22495798,2838.2,2838.1,0.001]
[1764590695665,16.27889498,2838.2,2838.1,0.001]
[1764590697681,5.22495798,2838.2,2838.1,0.001]
[1764590697888,20.51091898,2838.2,2838.1,0.001]
[1764590698594,20.23687221,2838.2,2838.1,0.001]
[1764590699094,20.96246632,2838.2,2838.1,0.001]
[1764590699472,33.59259132,2838.2,2838.1,0.001]
[1764590699780,32.95103532,2838.2,2838.1,0.001]
[1764590700202,32.05666904,2838.2,2838.1,0.001]
[1764590700504,30.47319504,2838.2,2838.1,0.001]
[1764590700806,29.90143781,2838.2,2838.1,0.001]
[1764590701512,30.78243981,2838.2,2838.1,0.001]
[1764590702107,20.84996681,2838.2,2838.1,0.001]
[1764590702284,21.42172404,2838.2,2838.1,0.001]
[1764590702490,36.96525658,2838.2,2838.1,0.001]
[1764590702901,0.405504,2837.7,2837.6,0.001]
[1764590703105,32.94685327,2837.7,2837.6,0.001]
[1764590703411,6.71185327,2837.7,2837.6,0.001]
[1764590703712,40.37717645,2837.7,2837.6,0.001]
[1764590704290,40.81082823,2837.7,2837.6,0.001]
[1764590704488,44.32780644,2837.7,2837.6,0.001]
[1764590705499,44.32700644,2837.7,2837.6,0.001]
[1764590705696,58.32303123,2837.7,2837.0,0.001]
[1764590705998,15.25438498,2837.1,2837.0,0.001]
[1764590706203,16.05114221,2837.1,2837.0,0.001]
[1764590706509,40.45554109,2837.1,2837.0,0.001]
[1764590706713,40.59690357,2837.1,2837.0,0.001]
[1764590707410,41.00240757,2837.1,2837.0,0.001]
[1764590707622,44.52713352,2837.1,2837.0,0.001]
[1764590708116,14.52713352,2837.1,2837.0,0.001]
[1764590708314,19.52310186,2837.1,2837.0,0.001]
[1764590708624,37.95452786,2837.1,2837.0,0.001]
[1764590709119,41.66952786,2837.1,2837.0,0.001]
[1764590709289,37.95452786,2837.1,2837.0,0.001]
[1764590709485,44.52713352,2837.1,2837.0,0.001]
[1764590709813,0.405504,2836.8,2836.4,0.001]
[1764590710019,33.9259548,2836.8,2836.4,0.001]
[1764590710219,27.88211271,2836.8,2836.4,0.001]
[1764590710385,31.16346093,2836.8,2836.4,0.001]
[1764590710586,42.65433293,2836.8,2836.4,0.001]
[1764590711022,16.94671127,2836.8,2836.4,0.001]
[1764590711183,17.22898536,2836.8,2836.4,0.001]
[1764590711513,20.97908406,2836.8,2836.4,0.001]
[1764590711717,31.23099604,2836.5,2836.4,0.001]
[1764590712017,38.85818471,2836.5,2836.4,0.001]
[1764590712213,42.23148536,2836.5,2836.4,0.001]
[1764590712513,36.0664057,2836.5,2836.4,0.001]
[1764590713214,35.1836377,2836.5,2836.4,0.001]
[1764590713719,43.35687723,2836.5,2836.4,0.001]
[1764590714011,44.03067723,2836.5,2836.4,0.001]
[1764590714223,0.1948,2832.9,2831.6,0.1]
[1764590714388,0.025,2831.3,2830.4,0.06930061]
[1764590714725,0.405504,2830.0,2828.4,0.4936]
[1764590714946,0.405504,2829.7,2828.5,0.4936]
[1764590715146,0.405504,2828.9,2828.5,0.4936]
[1764590715320,0.405504,2829.2,2828.5,0.4936]
[1764590715524,0.405504,2829.2,2829.1,0.646]
[1764590715841,0.231,2830.0,2829.1,0.646]
[1764590716045,0.09989793,2829.3,2829.2,0.9451]
[1764590716241,0.3448,2830.3,2829.2,0.4515]
[1764590716543,0.19979587,2829.3,2829.2,0.4515]
[1764590716749,0.1138,2830.3,2828.1,0.1945]
[1764590716923,0.05,2830.4,2829.1,0.1945]
[1764590717123,0.1955,2830.6,2829.1,0.1945]
[1764590717436,0.19979587,2830.0,2829.2,0.4813]
[1764590717635,0.09989793,2830.2,2829.3,7.06888628]
[1764590717839,0.09989793,2830.2,2829.9,0.4777]
[1764590717840,0.405504,2830.1,2829.9,0.4777]
[1764590718022,0.405504,2830.1,2830.0,0.4813]
[1764590718341,0.405504,2830.1,2830.0,1.1427]
[1764590718746,0.09989793,2830.5,2830.0,0.589]
[1764590719051,3.765,2831.9,2830.0,0.589]
[1764590719052,0.4605,2831.5,2830.4,0.4777]
[1764590719248,0.09989793,2830.7,2830.4,0.4777]
[1764590719448,0.19979587,2831.3,2830.6,0.4777]
[1764590719748,0.19979587,2831.3,2830.8,0.72559411]
[1764590720045,0.19979587,2831.3,2831.2,0.6223]
[1764590720248,0.09989793,2831.7,2831.2,0.6223]
[1764590720620,0.09989793,2831.8,2831.6,0.4777]
[1764590720814,0.09989793,2831.8,2831.7,0.4777]
[1764590721013,0.09989793,2832.0,2831.7,0.4777]
[1764590721217,0.09989793,2832.0,2831.8,0.4813]
[1764590721444,0.19979587,2832.3,2831.9,0.4777]
[1764590721648,0.1976,2833.8,2832.2,0.72559411]
[1764590721815,6.18781,2833.7,2832.3,0.77874916]
[1764590722019,0.09989793,2833.1,2832.3,1.44374916]
[1764590722258,0.09989793,2833.3,2832.4,0.4813]
[1764590722500,0.09989793,2833.0,2832.4,0.4813]
[1764590722650,0.09989793,2833.0,2832.9,0.4777]
[1764590723050,0.09989793,2833.0,2832.9,0.9462]
[1764590723954,0.09989793,2832.5,2832.3,4.9616241]
[1764590724162,0.405504,2833.6,2832.4,1.65339411]
[1764590724347,0.09989793,2832.9,2832.4,1.65339411]
[1764590724552,0.09989793,2832.9,2832.5,1.35834685]
[1764590724773,0.09989793,2832.9,2832.8,0.4593]
[1764590725051,1.37619411,2833.8,2832.8,0.4593]
[1764590725052,0.405504,2833.2,2832.8,0.4593]
[1764590725347,0.19979587,2833.7,2833.1,0.5814]
[1764590725546,0.19979587,2833.7,2833.2,0.4593]
[1764590725983,0.405504,2833.6,2833.2,0.4593]
[1764590726361,0.405504,2833.0,2832.3,0.6522]
[1764590726561,0.405504,2832.4,2832.3,0.1837]
[1764590726763,0.405504,2832.4,2832.3,0.643]
[1764590727382,0.09989793,2832.6,2832.3,0.643]
[1764590727581,0.405504,2832.5,2832.4,0.4593]
[1764590728683,0.404704,2832.5,2832.3,0.1837]
[1764590728855,0.404704,2832.5,2832.1,0.2157]
[1764590729054,0.404704,2832.5,2832.1,1.33009411]
[1764590729254,0.404704,2832.5,2832.1,4.13543314]
[1764590729682,0.404704,2832.5,2832.1,0.6045]
[1764590729888,0.404704,2832.5,2832.1,4.1354459]
[1764590730294,0.404704,2832.5,2832.2,0.232]
[1764590730492,0.404704,2832.5,2832.1,0.3888]
[1764590730699,0.19979587,2832.0,2831.2,0.1446]
[1764590730865,0.09989793,2831.6,2831.2,3.9086341]
[1764590731066,0.09989793,2831.6,2831.3,1.11439411]
[1764590731267,0.09989793,2831.6,2831.5,0.3888]
[1764590731985,0.405504,2832.5,2831.5,0.7776]
[1764590732193,0.405504,2832.5,2831.6,10.59471675]
[1764590732512,0.405504,2832.5,2832.4,0.1221]
[1764590732667,0.09989793,2832.9,2832.4,0.5109]
[1764590733014,0.09989793,2833.1,2832.8,0.3888]
[1764590733306,0.1976,2834.0,2832.9,0.232]
[1764590733475,0.09989793,2833.5,2833.0,0.7776]
[1764590733867,0.61550391,2834.0,2833.1,0.1221]
[1764590734065,0.09989793,2833.3,2833.1,0.1221]
[1764590734391,0.26472953,2834.4,2833.9,0.3888]
[1764590734565,0.26472953,2834.4,2834.3,0.3888]
[1764590734771,0.06493365,2834.6,2833.4,0.3888]
[1764590734970,0.09989793,2833.9,2833.5,0.232]
[1764590735168,0.002,2833.5,2833.4,0.3888]
[1764590735372,0.002,2833.5,2833.4,0.232]
[1764590735568,0.407504,2833.5,2833.1,0.1221]
[1764590735883,0.60729987,2833.5,2833.4,0.232]
[1764590736580,0.60729987,2833.5,2833.1,0.1221]
[1764590736766,0.002,2833.5,2832.4,7.18314467]
[1764590736969,0.405504,2832.7,2832.5,0.232]
[1764590737209,0.405504,2832.7,2832.4,0.1221]
[1764590737368,0.405504,2832.2,2831.9,0.232]
[1764590737591,0.478,2832.5,2831.4,3.53172703]
[1764590737790,0.405504,2831.9,2831.4,0.75970371]
[1764590738019,0.50540193,2831.9,2831.5,0.232]
[1764590738223,0.50540193,2831.9,2831.8,0.3888]
[1764590738424,3.72500073,2832.8,2831.8,3.92012283]
[1764590738425,0.405504,2832.2,2831.8,3.92012283]
[1764590738594,0.405504,2832.2,2832.1,0.5109]
[1764590738794,0.405504,2832.4,2832.1,0.5109]
[1764590739034,0.405504,2832.4,2832.2,0.232]
[1764590739326,0.405504,2832.4,2832.1,0.1221]
[1764590739512,0.405504,2832.4,2832.2,0.232]
[1764590739836,0.405504,2832.7,2831.6,3.53157225]
[1764590739990,0.405504,2832.7,2831.5,0.72559411]
[1764590739991,0.405504,2831.9,2831.7,0.232]
[1764590740195,0.01126892,2831.8,2831.5,0.3888]
[1764590740442,0.01126892,2831.8,2831.6,0.232]
[1764590741096,0.01126892,2831.8,2831.5,7.06339094]
[1764590741334,0.01126892,2831.8,2831.6,0.232]
[1764590742824,0.01126892,2831.8,2831.7,0.3888]
[1764590743633,0.41677292,2831.8,2831.7,0.232]
[1764590743849,0.01126892,2831.8,2831.7,9.18205015]
[1764590744146,0.01126892,2831.8,2831.7,9.57085015]
[1764590744845,0.002,2833.5,2831.7,27.95368196]
[1764590745085,0.002,2833.5,2832.2,0.72559411]
[1764590745086,0.09989793,2833.2,2832.2,0.72559411]
[1764590745343,0.09989793,2833.2,2832.3,0.5109]
[1764590745543,0.09989793,2833.2,2832.4,0.232]
[1764590745746,0.09989793,2833.2,2833.1,0.1221]
[1764590745965,0.002,2833.5,2833.1,0.7429]
[1764590746159,0.405504,2833.4,2832.4,0.3888]
[1764590746317,0.405504,2833.4,2832.5,0.232]
[1764590746719,0.405504,2833.4,2832.6,7.06065098]
[1764590747145,0.84553277,2833.4,2832.6,7.06065098]
[1764590747322,0.405504,2833.1,2832.7,0.232]
[1764590747728,0.405504,2832.7,2832.3,0.1221]
[1764590747929,0.405504,2832.4,2832.3,3.65279615]
[1764590748129,0.405504,2832.4,2832.1,3.65304672]
[1764590748330,0.50540193,2832.3,2832.2,0.232]
[1764590748847,0.405504,2833.0,2832.2,8.07124818]
[1764590749047,0.09989793,2832.5,2832.2,8.07124818]
[1764590749248,0.09989793,2832.5,2832.2,7.68244818]
[1764590749426,0.405504,2832.4,2832.1,3.65303881]
[1764590749631,0.405504,2832.4,2832.3,0.232]
[1764590750222,0.19979587,2832.4,2832.3,0.232]
[1764590751149,0.19979587,2832.4,2832.2,3.53074617]
[1764590751150,0.405504,2832.3,2832.1,3.53089255]
[1764590751327,0.405504,2832.3,2832.0,4.25664142]
[1764590751525,0.404704,2832.3,2832.1,0.232]
[1764590753227,0.19979587,2832.4,2832.2,3.53082409]
[1764590754051,0.002,2832.3,2832.2,3.53082409]
[1764590754255,0.9527,2832.3,2831.6,0.001]
[1764590754452,0.50540193,2831.7,2831.6,0.001]
[1764590755025,0.50540193,2831.7,2831.6,3.53257225]
[1764590755225,0.50540193,2831.7,2831.6,0.001]
[1764590756020,0.50540193,2831.7,2831.6,0.232]
[1764590756722,1.45610193,2831.7,2831.6,0.001]
[1764590757727,1.356204,2831.7,2831.6,0.001]
[1764590757928,1.55599987,2831.7,2831.6,0.001]
[1764590758246,2.08434759,2831.7,2831.6,0.001]
[1764590758740,5.61579513,2831.7,2831.6,0.001]
[1764590759329,0.60529987,2831.7,2831.6,0.001]
[1764590759843,0.405504,2831.7,2831.6,0.001]
[1764590760056,0.60529987,2831.7,2831.6,0.001]
[1764590760260,0.50540193,2831.7,2831.6,0.001]
[1764590761763,0.002,2832.3,2831.6,0.3898]
[1764590761948,0.405504,2831.9,2831.7,0.231]
[1764590762439,0.09989793,2832.0,2831.7,0.231]
[1764590762839,0.405504,2831.9,2831.7,0.231]
[1764590763037,0.50540193,2831.7,2831.6,0.001]
[1764590763230,0.1961,2831.9,2831.6,0.001]
[1764590763429,0.60529987,2831.7,2831.6,0.001]
[1764590763927,0.405504,2831.7,2831.6,0.3898]
[1764590764149,0.96390193,2831.7,2831.6,0.001]
[1764590764365,1.356204,2831.7,2831.6,0.001]
[1764590764533,1.94484214,2831.7,2831.6,0.001]
[1764590764735,0.50540193,2831.7,2831.6,0.001]
[1764590765363,0.09989793,2832.0,2831.7,7.06289508]
[1764590765533,0.09989793,2832.0,2831.7,3.53144754]
[1764590765863,0.09989793,2832.0,2831.7,7.06289508]
[1764590767161,0.002,2832.3,2831.9,0.3398]
[1764590767337,0.002,2832.3,2832.2,3.60392409]
[1764590767752,0.002,2832.3,2832.2,3.94372409]
[1764590767968,0.09989793,2831.9,2831.8,3.53132283]
[1764590768169,0.405504,2832.2,2831.8,7.29364566]
[1764590768374,0.405504,2832.2,2831.8,7.63344566]
[1764590768573,0.405504,2832.2,2831.9,0.231]
[1764590768874,0.002,2832.3,2831.9,0.231]
[1764590769074,0.002,2832.3,2831.8,7.06264566]
[1764590769075,0.405504,2832.2,2831.8,7.06264566]
[1764590769386,0.405504,2832.2,2832.0,3.53107344]
[1764590769546,0.405504,2832.2,2831.9,0.231]
[1764590769884,0.405504,2832.2,2831.9,3.76216122]
[1764590770048,0.897704,2832.2,2831.9,3.76216122]
[1764590770683,0.897704,2832.2,2831.9,7.29335935]
[1764590770860,0.4585,2832.0,2831.9,3.53116122]
[1764590771062,0.405504,2832.2,2831.9,3.76216122]
[1764590771367,0.407504,2832.3,2831.9,7.29335935]
[1764590771570,0.405504,2832.2,2831.9,7.29335935]
[1764590772491,0.09989793,2832.2,2831.9,7.29335935]
[1764590772656,0.09989793,2832.2,2832.1,0.4129]
[1764590773064,0.002,2832.3,2831.9,7.29335935]
[1764590773263,0.09989793,2832.1,2831.9,7.29335935]
[1764590773660,0.09989793,2832.2,2832.0,0.3398]
[1764590773985,0.002,2832.3,2832.2,0.4129]
[1764590774293,0.0871,2832.2,2831.9,7.29335935]
[1764590774698,0.0863,2832.2,2831.9,7.29335935]
[1764590775958,0.0863,2832.2,2831.9,8.37582601]
[1764590777102,0.55839793,2832.0,2831.7,0.231]
[1764590777387,0.5785,2832.2,2831.5,3.5326813]
[1764590777388,0.405504,2831.9,2831.5,3.76363347]
[1764590777780,0.19979587,2831.7,2831.6,0.231]
[1764590778089,0.19979587,2831.7,2831.6,3.76257225]
[1764590779396,0.19979587,2831.7,2831.6,3.53157225]
[1764590779692,0.19979587,2831.7,2831.6,3.76257225]
[1764590780587,0.09989793,2831.6,2831.5,0.001]
[1764590780757,0.96390193,2831.6,2831.5,0.001]
[1764590780955,1.97446959,2831.6,2831.5,0.001]
[1764590781157,8.48171153,2831.6,2831.5,0.001]
[1764590781488,4.69500153,2831.6,2831.5,0.001]
[1764590781666,9.06148566,2831.6,2831.5,0.001]
[1764590781988,8.51828359,2831.6,2831.5,0.001]
[1764590782185,29.07628359,2831.6,2831.5,0.001]
[1764590782484,5.50604184,2831.6,2831.5,0.001]
[1764590782706,34.03232684,2831.6,2831.5,0.001]
[1764590782907,28.72472684,2831.6,2831.5,0.001]
[1764590783086,5.40614391,2831.6,2831.5,0.001]
[1764590783410,36.48326967,2831.6,2831.5,0.001]
[1764590783705,32.84402667,2831.6,2831.5,0.001]
[1764590784073,6.48326967,2831.6,2831.5,0.001]
[1764590784278,35.56656067,2831.6,2831.5,0.001]
[1764590785179,36.48326967,2831.6,2831.5,0.001]
[1764590785507,37.59484267,2831.6,2831.5,0.001]
[1764590785720,8.27561195,2831.6,2831.5,0.001]
[1764590786218,5.7342484,2831.6,2831.5,0.001]
[1764590786378,11.4360634,2831.6,2831.5,0.001]
[1764590786583,0.9507,2831.6,2831.5,0.001]
[1764590786885,7.08102318,2831.6,2831.5,0.001]
[1764590787098,4.58217018,2831.6,2831.5,0.001]
[1764590788190,0.09989793,2831.6,2831.5,0.001]
[1764590788586,0.57179793,2831.6,2831.5,0.001]
[1764590788790,0.97730193,2831.6,2831.5,0.001]
[1764590789634,4.88797625,2831.6,2831.5,0.001]
[1764590790124,0.405504,2831.5,2831.3,0.001]
[1764590790322,19.95079293,2831.4,2831.3,0.001]
[1764590790529,23.48261464,2831.4,2831.3,0.001]
[1764590790702,23.96161464,2831.4,2831.3,0.001]
[1764590791090,4.98812364,2831.4,2831.3,0.001]
[1764590791330,33.22866766,2831.4,2831.3,0.001]
[1764590791825,26.89352066,2831.4,2831.3,0.001]
[1764590792395,35.98227066,2831.4,2831.3,0.001]
[1764590792928,30.67543266,2831.4,2831.3,0.001]
[1764590793105,2.35055102,2831.4,2831.3,0.001]
[1764590793292,0.6808,2832.0,2831.3,0.001]
[1764590793499,0.19979587,2831.6,2831.3,0.001]
[1764590793728,0.405504,2831.5,2831.3,0.001]
[1764590794426,0.19979587,2831.6,2831.3,0.001]
[1764590794634,0.405504,2831.5,2831.3,0.001]
[1764590795529,0.19979587,2831.6,2831.3,0.001]
[1764590795830,0.0883,2832.2,2831.4,0.23]
[1764590795999,0.09989793,2832.0,2831.4,1.14424812]
[1764590796528,0.09989793,2832.0,2831.4,0.23]
[1764590796733,0.09989793,2832.0,2831.5,7.06339396]
[1764590797428,0.19979587,2831.9,2831.5,7.06339396]
[1764590797647,0.405504,2832.1,2831.5,7.06339396]
[1764590798650,0.19979587,2831.9,2831.5,7.06339396]
[1764590799255,0.19979587,2831.9,2831.5,8.21857087]
[1764590800657,0.19979587,2831.9,2831.5,11.75026785]
[1764590801368,0.405504,2832.1,2831.5,11.75026785]
[1764590803749,0.0883,2832.2,2831.5,11.75026785]
[1764590805767,0.0883,2832.2,2831.6,0.23]
[1764590805969,0.0883,2832.2,2831.6,1.42802679]
[1764590806162,0.18819793,2832.2,2831.6,1.42802679]
[1764590806871,0.18819793,2832.2,2831.6,2.1536209]
[1764590807176,0.18819793,2832.2,2831.9,7.06239626]
[1764590807177,0.0883,2832.2,2831.9,7.06239626]
[1764590807961,0.0883,2832.2,2832.0,0.23]
[1764590808363,0.0883,2832.2,2832.0,2.03796398]
[1764590809062,0.0883,2832.2,2832.1,3.53094876]
[1764590809263,0.0883,2832.2,2832.1,3.76094876]
[1764590810246,0.0883,2832.2,2832.1,4.48654287]
[1764590810668,0.07064111,2832.2,2832.1,4.48654287]
[1764590810880,0.07064111,2832.2,2832.1,6.27015532]
[1764590813362,0.07064111,2832.2,2832.1,6.04015532]
[1764590813568,0.07064111,2832.2,2832.1,6.27015532]
[1764590815059,0.07064111,2832.2,2832.1,6.26915532]
[1764590815781,0.07064111,2832.2,2832.1,6.04015532]
[1764590815976,0.07064111,2832.2,2832.1,6.26915532]
[1764590816174,0.07064111,2832.2,2832.1,6.04015532]
[1764590816393,0.07064111,2832.2,2832.1,4.48554287]
[1764590816585,0.07064111,2832.2,2832.1,4.25654287]
[1764590816757,0.07064111,2832.2,2832.1,4.48554287]
[1764590818492,0.07064111,2832.2,2832.1,4.25654287]
[1764590818677,0.07064111,2832.2,2832.1,4.48554287]
[1764590818876,0.07064111,2832.2,2832.1,5.39544044]
[1764590820092,0.07064111,2832.2,2832.1,5.16644044]
[1764590820267,0.07064111,2832.2,2832.1,5.39544044]
[1764590820597,1.03774111,2832.2,2831.7,3.53144754]
[1764590820761,0.09989793,2832.0,2831.8,0.229]
[1764590820962,0.06984111,2832.2,2831.8,0.229]
[1764590821904,0.06984111,2832.2,2831.8,0.95459411]
[1764590822102,0.06984111,2832.2,2831.9,1.15489367]
[1764590822267,0.56574111,2832.2,2832.0,0.229]
[1764590822465,0.4712,2832.1,2832.0,3.76007344]
[1764590822995,0.9671,2832.1,2832.0,3.76007344]
[1764590825162,0.9671,2832.1,2832.0,3.53107344]
[1764590825358,0.9671,2832.1,2832.0,3.76007344]
[1764590825591,0.4712,2832.1,2832.0,3.76007344]
[1764590825960,0.06984111,2832.2,2832.0,8.02027255]
[1764590829025,0.06984111,2832.2,2832.1,0.72559411]
[1764590829520,0.06984111,2832.2,2832.1,4.25654287]
[1764590831326,0.06984111,2832.2,2832.1,4.48554287]
[1764590831819,0.06984111,2832.2,2832.1,4.25654287]
[1764590832019,0.06984111,2832.2,2832.1,5.6904354]
[1764590832218,0.06984111,2832.2,2832.1,3.53094876]
[1764590832420,0.06984111,2832.2,2832.1,3.75994876]
[1764590833295,0.06984111,2832.2,2832.1,3.53094876]
[1764590833622,0.06984111,2832.2,2832.1,3.75994876]
[1764590835016,0.06984111,2832.2,2832.1,4.48554287]
[1764590835216,0.06984111,2832.2,2832.1,5.7133354]
[1764590837338,0.06984111,2832.2,2832.1,5.4843354]
[1764590837716,0.06984111,2832.2,2832.1,5.7133354]
[1764590837912,0.06984111,2832.2,2832.1,5.4843354]
[1764590838126,0.06984111,2832.2,2832.1,5.7133354]
[1764590839939,0.06984111,2832.2,2832.1,5.7123354]
[1764590840442,0.06984111,2832.2,2832.1,4.75874129]
[1764590840633,0.06984111,2832.2,2832.1,4.98674129]
[1764590840634,0.54104111,2832.2,2832.1,4.98674129]
[1764590840812,0.06984111,2832.2,2832.1,4.98674129]
[1764590843826,0.06904111,2832.2,2832.1,4.98674129]
[1764590844717,0.06904111,2832.2,2832.1,4.75874129]
[1764590844918,0.06904111,2832.2,2832.1,3.75894876]
[1764590845415,0.54754111,2832.2,2832.1,3.75894876]
[1764590845611,1.04424111,2832.2,2832.1,3.75894876]
[1764590846243,1.04424111,2832.2,2832.1,3.53094876]
[1764590846450,0.09989793,2832.1,2832.0,3.53196797]
[1764590846650,1.07509793,2832.1,2832.0,0.229]
[1764590848351,0.9752,2832.1,2832.0,0.229]
[1764590848753,0.9752,2832.1,2832.0,3.76007344]
[1764590850943,0.9752,2832.1,2832.0,0.001]
[1764590851461,1.380704,2832.1,2832.0,0.001]
[1764590852934,1.380704,2832.1,2832.0,3.53207344]
[1764590853471,1.58049987,2832.1,2832.0,0.001]
[1764590856864,1.48060193,2832.1,2832.0,0.001]
[1764590857658,1.380704,2832.1,2832.0,0.001]
[1764590857867,5.01155069,2832.1,2832.0,0.001]
[1764590858172,5.87289371,2832.1,2832.0,0.001]
[1764590859144,5.77299578,2832.1,2832.0,0.001]
[1764590860882,5.97279165,2832.1,2832.0,0.001]
[1764590861098,1.380704,2832.1,2832.0,0.001]
[1764590861275,1.07509793,2832.1,2832.0,0.001]
[1764590861440,1.48060193,2832.1,2832.0,0.001]
[1764590862952,5.11144863,2832.1,2832.0,0.001]
[1764590863568,1.58049987,2832.1,2832.0,0.001]
[1764590864572,2.09872394,2832.1,2832.0,0.001]
[1764590865371,1.380704,2832.1,2832.0,0.001]
[1764590866773,1.379904,2832.1,2832.0,0.001]
[1764590870083,1.47980193,2832.1,2832.0,0.001]
[1764590870983,1.62137655,2832.1,2832.0,0.001]
[1764590871186,5.15232531,2832.1,2832.0,0.001]
[1764590871482,0.883204,2832.1,2832.0,0.001]
[1764590871898,1.357304,2832.1,2832.0,0.001]
[1764590872353,0.883204,2832.1,2832.0,0.001]
[1764590872980,1.351504,2832.1,2832.0,0.001]
[1764590873690,1.55129987,2832.1,2832.0,0.001]
[1764590873851,3.92409693,2832.1,2832.0,0.001]
[1764590874052,2.20400316,2832.1,2832.0,0.001]
[1764590875286,1.45140193,2832.1,2832.0,0.001]
[1764590875851,1.55129987,2832.1,2832.0,0.001]
[1764590877175,0.50540193,2832.1,2832.0,0.001]
[1764590877557,0.97990193,2832.1,2832.0,0.001]
[1764590878168,1.44820193,2832.1,2832.0,0.001]
[1764590878369,1.348304,2832.1,2832.0,0.001]
[1764590879495,8.41020152,2832.1,2831.7,0.001]
[1764590879702,0.4745,2831.4,2829.5,3.53415974]
[1764590879860,0.4745,2831.4,2829.1,3.53460627]
[1764590879861,0.09989793,2830.4,2830.1,0.016]
[1764590880237,0.09989793,2830.4,2830.2,3.5333192]
[1764590880355,0.09989793,2830.4,2830.1,3.54942756]
[1764590880555,0.405504,2830.8,2830.2,0.35494276]
[1764590880757,0.1892,2830.9,2830.1,7.0668716]
[1764590880758,0.60529987,2830.6,2830.1,3.28342756]
[1764590881056,0.880004,2830.2,2830.1,3.28342756]
[1764590881381,0.19979587,2830.3,2829.7,18.78680145]
[1764590881693,0.405504,2830.4,2829.7,7.06788704]
[1764590881860,0.405504,2830.5,2829.7,7.06788704]
[1764590882062,0.09989793,2830.0,2829.8,0.72559411]
[1764590882293,0.19979587,2830.6,2830.0,0.72559411]
[1764590882492,0.405504,2830.5,2830.0,1.93082106]
[1764590882696,0.405504,2830.8,2830.0,0.72559411]
[1764590882880,0.09989793,2830.5,2830.0,0.72559411]